[Event "Live Chess"]
[Site "Chess.com"]
[Date "2023.05.20"]
[Round "-"]
[White "viktorskliarov"]
[Black "DmitryVasliev"]
[Result "1-0"]
[WhiteElo "2652"]
[BlackElo "1661"]
[TimeControl "300"]
[EndTime "12:47:49 PDT"]
[Termination "viktorskliarov won by resignation"]

1. e4 {[%clk 0:04:57.1]} 1... d6 {[%clk 0:04:58.7]} 2. d4 {[%clk 0:04:52.4]}
2... c6 {[%clk 0:04:57.8]} 3. Nc3 {[%clk 0:04:50.7]} 3... g6 {[%clk 0:04:56.4]}
4. Be3 {[%clk 0:04:49.1]} 4... Bg7 {[%clk 0:04:55.6]} 5. f3 {[%clk 0:04:47.2]}
5... Nd7 {[%clk 0:04:54.9]} 6. Qd2 {[%clk 0:04:46.2]} 6... b5 {[%clk 0:04:50.7]}
7. O-O-O {[%clk 0:04:44.3]} 7... Nb6 {[%clk 0:04:47.1]} 8. Bd3 {[%clk
0:04:34.6]} 8... a5 {[%clk 0:04:40]} 9. g4 {[%clk 0:04:29.6]} 9... a4 {[%clk
0:04:36]} 10. a3 {[%clk 0:04:19.4]} 10... Nc4 {[%clk 0:04:30.5]} 11. Bxc4 {[%clk
0:04:18.4]} 11... bxc4 {[%clk 0:04:29.6]} 12. Na2 {[%clk 0:03:59.7]} 12... Rb8
{[%clk 0:04:18.7]} 13. Nb4 {[%clk 0:03:57.2]} 13... Qb6 {[%clk 0:04:17.1]} 14.
Ne2 {[%clk 0:03:32.9]} 14... Be6 {[%clk 0:03:53.7]} 15. Nc3 {[%clk 0:03:23.8]}
15... Qb7 {[%clk 0:03:40.6]} 16. h4 {[%clk 0:03:10.7]} 16... h6 {[%clk
0:03:32.9]} 17. g5 {[%clk 0:03:02.6]} 17... h5 {[%clk 0:03:31.1]} 18. Qe2 {[%clk
0:03:01.2]} 18... d5 {[%clk 0:03:15.1]} 19. Nxa4 {[%clk 0:02:45.6]} 19... Qc8
{[%clk 0:02:47.8]} 20. Nc5 {[%clk 0:02:14.1]} 20... Rxb4 {[%clk 0:02:36.1]} 21.
axb4 {[%clk 0:02:11.3]} 21... Bd7 {[%clk 0:02:33.5]} 22. Kd2 {[%clk 0:01:58.1]}
22... e6 {[%clk 0:02:29.8]} 23. Ra1 {[%clk 0:01:56.1]} 23... Ne7 {[%clk
0:02:26.9]} 24. Ra7 {[%clk 0:01:53.2]} 24... O-O {[%clk 0:02:19.7]} 25. Nxd7
{[%clk 0:01:49.3]} 25... Rd8 {[%clk 0:02:18.1]} 26. Nf6+ {[%clk 0:01:48.4]}
26... Bxf6 {[%clk 0:02:16.8]} 27. gxf6 {[%clk 0:01:47]} 27... c3+ {[%clk
0:02:05.8]} 28. bxc3 {[%clk 0:01:44.4]} 28... dxe4 {[%clk 0:01:59.4]} 29. fxe7
{[%clk 0:01:42]} 29... Re8 {[%clk 0:01:58]} 30. fxe4 {[%clk 0:01:39.3]} 30...
Qb8 {[%clk 0:01:56.1]} 31. Rha1 {[%clk 0:01:37.4]} 31... Kg7 {[%clk 0:01:52.8]}
32. Qf2 {[%clk 0:01:33.4]} 32... f6 {[%clk 0:01:43]} 33. Bf4 {[%clk 0:01:29.1]}
33... e5 {[%clk 0:01:40.2]} 34. dxe5 {[%clk 0:01:26.7]} 34... fxe5 {[%clk
0:01:38.2]} 35. Bg5 {[%clk 0:01:25.8]} 35... Qd6+ {[%clk 0:01:36.6]} 36. Kc1
{[%clk 0:01:22]} 36... Qe6 {[%clk 0:01:20.5]} 37. Ra8 {[%clk 0:01:15.6]} 37...
Rxa8 {[%clk 0:01:17]} 38. Rxa8 {[%clk 0:01:11.2]} 1-0

[Event "Live Chess"]
[Site "Chess.com"]
[Date "2023.05.20"]
[Round "-"]
[White "omisoc"]
[Black "mightysmasher"]
[Result "0-1"]
[WhiteElo "2183"]
[BlackElo "2119"]
[TimeControl "300"]
[EndTime "12:47:49 PDT"]
[Termination "mightysmasher won by resignation"]

1. b3 {[%clk 0:04:58]} 1... e5 {[%clk 0:04:55.4]} 2. Bb2 {[%clk 0:04:56.6]} 2...
d6 {[%clk 0:04:54.8]} 3. e3 {[%clk 0:04:55.7]} 3... Nf6 {[%clk 0:04:53.6]} 4. d4
{[%clk 0:04:54.6]} 4... exd4 {[%clk 0:04:52.2]} 5. exd4 {[%clk 0:04:53]} 5...
Be7 {[%clk 0:04:51.4]} 6. Be2 {[%clk 0:04:51.6]} 6... O-O {[%clk 0:04:50.6]} 7.
Nf3 {[%clk 0:04:51.2]} 7... b6 {[%clk 0:04:48.9]} 8. O-O {[%clk 0:04:49.5]} 8...
Bb7 {[%clk 0:04:48.2]} 9. Nbd2 {[%clk 0:04:43.5]} 9... Nbd7 {[%clk 0:04:45.9]}
10. Re1 {[%clk 0:04:42.7]} 10... c5 {[%clk 0:04:43.3]} 11. Bd3 {[%clk
0:04:39.8]} 11... d5 {[%clk 0:04:40.5]} 12. Nf1 {[%clk 0:04:34.6]} 12... Bd6
{[%clk 0:04:38.5]} 13. Ng3 {[%clk 0:04:30.7]} 13... Qc7 {[%clk 0:04:37.5]} 14.
c4 {[%clk 0:04:26.3]} 14... Rfe8 {[%clk 0:04:35.5]} 15. Nf5 {[%clk 0:04:18.3]}
15... Ne4 {[%clk 0:04:32.8]} 16. Nxd6 {[%clk 0:04:15.6]} 16... Qxd6 {[%clk
0:04:31.2]} 17. cxd5 {[%clk 0:03:46.8]} 17... Bxd5 {[%clk 0:04:28.2]} 18. Qc2
{[%clk 0:03:43.4]} 18... f5 {[%clk 0:04:25.4]} 19. dxc5 {[%clk 0:03:38.6]} 19...
Ndxc5 {[%clk 0:04:23.6]} 20. Bc4 {[%clk 0:03:37.9]} 20... Bxc4 {[%clk
0:04:21.5]} 21. Qxc4+ {[%clk 0:03:36]} 21... Kh8 {[%clk 0:04:20.2]} 22. Rad1
{[%clk 0:03:32.7]} 22... Qg6 {[%clk 0:04:17.3]} 23. Ne5 {[%clk 0:03:29.2]} 23...
Qe6 {[%clk 0:03:56]} 24. f3 {[%clk 0:03:22.7]} 24... Qxc4 {[%clk 0:03:53.3]} 25.
Nxc4 {[%clk 0:03:15]} 25... Ng5 {[%clk 0:03:46]} 26. Rxe8+ {[%clk 0:02:52.3]}
26... Rxe8 {[%clk 0:03:43.9]} 27. Kf2 {[%clk 0:02:52]} 27... Nf7 {[%clk
0:03:40.3]} 28. Rd7 {[%clk 0:02:48.6]} 28... Nxd7 {[%clk 0:03:38.4]} 0-1

[Event "Live Chess"]
[Site "Chess.com"]
[Date "2023.05.20"]
[Round "-"]
[White "FlyingChessKestrel13"]
[Black "Delacorta"]
[Result "1-0"]
[WhiteElo "2126"]
[BlackElo "1449"]
[TimeControl "300"]
[EndTime "12:47:50 PDT"]
[Termination "FlyingChessKestrel13 won by resignation"]

1. d4 {[%clk 0:04:56.4]} 1... e6 {[%clk 0:04:58.2]} 2. Nf3 {[%clk 0:04:55.9]}
2... f5 {[%clk 0:04:56.5]} 3. g3 {[%clk 0:04:54.6]} 3... Nf6 {[%clk 0:04:55.5]}
4. Bg2 {[%clk 0:04:54.2]} 4... c6 {[%clk 0:04:48.6]} 5. O-O {[%clk 0:04:52.2]}
5... d5 {[%clk 0:04:47.5]} 6. c4 {[%clk 0:04:50.8]} 6... h6 {[%clk 0:04:37]} 7.
Nc3 {[%clk 0:04:49.6]} 7... g5 {[%clk 0:04:35.8]} 8. Ne5 {[%clk 0:04:47.7]} 8...
Nbd7 {[%clk 0:04:33.5]} 9. e3 {[%clk 0:04:46.3]} 9... Nxe5 {[%clk 0:04:31.5]}
10. dxe5 {[%clk 0:04:45.2]} 10... Ne4 {[%clk 0:04:30.7]} 11. Qh5+ {[%clk
0:04:44.3]} 11... Kd7 {[%clk 0:04:26.8]} 12. Nxe4 {[%clk 0:04:40.9]} 12... fxe4
{[%clk 0:04:22.8]} 13. cxd5 {[%clk 0:04:39.5]} 13... exd5 {[%clk 0:04:22.1]} 14.
Bh3+ {[%clk 0:04:34.8]} 14... Kc7 {[%clk 0:04:20.8]} 15. Bxc8 {[%clk 0:04:26.6]}
15... Rxc8 {[%clk 0:04:19]} 16. b3 {[%clk 0:04:24.9]} 16... Bg7 {[%clk
0:04:03.3]} 17. e6 {[%clk 0:04:19.7]} 17... Bxa1 {[%clk 0:03:36.1]} 18. Qf7+
{[%clk 0:04:12.1]} 18... Kb8 {[%clk 0:03:33.2]} 19. Ba3 {[%clk 0:04:11.3]} 19...
Bf6 {[%clk 0:03:28]} 20. e7 {[%clk 0:04:04.9]} 20... Bxe7 {[%clk 0:03:26.1]} 21.
Bxe7 {[%clk 0:04:00.2]} 21... Qe8 {[%clk 0:03:02.6]} 22. Qf6 {[%clk 0:03:57.7]}
22... Ka8 {[%clk 0:02:45.8]} 23. Rc1 {[%clk 0:03:45.7]} 23... Rh7 {[%clk
0:02:38.5]} 24. Bb4 {[%clk 0:03:36.3]} 24... Rf7 {[%clk 0:02:32.1]} 25. Qxh6
{[%clk 0:03:31.4]} 25... Qe5 {[%clk 0:02:09.5]} 26. Bc3 {[%clk 0:03:26.7]} 26...
Qc7 {[%clk 0:02:05]} 27. Qxg5 {[%clk 0:03:23.8]} 27... Rcf8 {[%clk 0:01:59.6]}
28. Be5 {[%clk 0:03:20.7]} 28... Qe7 {[%clk 0:01:51.8]} 29. Qxe7 {[%clk
0:03:19.3]} 29... Rxe7 {[%clk 0:01:50.7]} 30. Bd6 {[%clk 0:03:19]} 30... Rff7
{[%clk 0:01:49.1]} 31. Bxe7 {[%clk 0:03:17.9]} 31... Rxe7 {[%clk 0:01:49]} 32.
h4 {[%clk 0:03:16.1]} 32... Kb8 {[%clk 0:01:47]} 33. Kg2 {[%clk 0:03:15.1]}
33... Kc7 {[%clk 0:01:46]} 34. g4 {[%clk 0:03:13.5]} 34... Kd6 {[%clk
0:01:45.1]} 35. Kg3 {[%clk 0:03:12.5]} 35... Ke5 {[%clk 0:01:44.5]} 36. g5
{[%clk 0:03:11.6]} 36... Rf7 {[%clk 0:01:41.8]} 37. Rf1 {[%clk 0:03:07.2]} 37...
Rf3+ {[%clk 0:01:39.6]} 38. Kg4 {[%clk 0:03:05.3]} 38... d4 {[%clk 0:01:36.3]}
39. exd4+ {[%clk 0:03:03.2]} 39... Kxd4 {[%clk 0:01:34.8]} 40. g6 {[%clk
0:03:02]} 40... e3 {[%clk 0:01:33.9]} 41. Kxf3 {[%clk 0:03:00.5]} 41... e2
{[%clk 0:01:33]} 42. Kxe2 {[%clk 0:02:59.1]} 1-0

[Event "Live Chess"]
[Site "Chess.com"]
[Date "2023.05.20"]
[Round "-"]
[White "LiamClery2020"]
[Black "birdseed45"]
[Result "1/2-1/2"]
[WhiteElo "2071"]
[BlackElo "1876"]
[TimeControl "300"]
[EndTime "12:47:55 PDT"]
[Termination "Game drawn by agreement"]

1. e4 {[%clk 0:04:59.2]} 1... c5 {[%clk 0:04:58.4]} 2. Nf3 {[%clk 0:04:56.2]}
2... Nc6 {[%clk 0:04:57.9]} 3. Bb5 {[%clk 0:04:55.2]} 3... d6 {[%clk 0:04:56.4]}
4. Bxc6+ {[%clk 0:04:54.4]} 4... bxc6 {[%clk 0:04:56.3]} 5. O-O {[%clk
0:04:54.1]} 5... e5 {[%clk 0:04:55.3]} 6. h3 {[%clk 0:04:53.2]} 6... f5 {[%clk
0:04:54.5]} 7. exf5 {[%clk 0:04:52]} 7... Bxf5 {[%clk 0:04:54.4]} 8. Re1 {[%clk
0:04:51.1]} 8... Nf6 {[%clk 0:04:53.7]} 9. d4 {[%clk 0:04:50.4]} 9... cxd4
{[%clk 0:04:52.2]} 10. Nxd4 {[%clk 0:04:49.4]} 10... Bd7 {[%clk 0:04:49.4]} 11.
f4 {[%clk 0:04:48.5]} 11... e4 {[%clk 0:04:45.5]} 12. Nc3 {[%clk 0:04:47.1]}
12... d5 {[%clk 0:04:41.4]} 13. f5 {[%clk 0:04:40.7]} 13... Bc5 {[%clk
0:04:33.5]} 14. Be3 {[%clk 0:04:39.3]} 14... O-O {[%clk 0:04:31]} 15. g4 {[%clk
0:04:35.5]} 15... Qb6 {[%clk 0:04:24.7]} 16. Na4 {[%clk 0:04:32.7]} 16... Qa5
{[%clk 0:04:17.9]} 17. Nxc5 {[%clk 0:04:31.4]} 17... Qxc5 {[%clk 0:04:17.6]} 18.
Ne6 {[%clk 0:04:30.2]} 18... Qd6 {[%clk 0:04:08.3]} 19. Nxf8 {[%clk 0:04:28.8]}
19... Qg3+ {[%clk 0:04:04.3]} 20. Kf1 {[%clk 0:04:26.1]} 20... Qxh3+ {[%clk
0:03:59.9]} 21. Kg1 {[%clk 0:04:25]} 21... Nxg4 {[%clk 0:03:43]} 22. Qe2 {[%clk
0:04:23.4]} 22... Rxf8 {[%clk 0:03:37.1]} 23. Qg2 {[%clk 0:04:22.2]} 23... Qxg2+
{[%clk 0:03:25.3]} 24. Kxg2 {[%clk 0:04:21]} 24... Rxf5 {[%clk 0:03:19.3]} 25.
Bd4 {[%clk 0:04:18.4]} 25... Rg5 {[%clk 0:03:11.3]} 26. Kg3 {[%clk 0:04:12.6]}
26... Rg6 {[%clk 0:03:03.1]} 27. Kh4 {[%clk 0:04:06.9]} 27... Nh6 {[%clk
0:02:50.6]} 28. Rf1 {[%clk 0:04:02.3]} 28... Nf5+ {[%clk 0:02:41.4]} 29. Rxf5
{[%clk 0:03:58.6]} 29... Bxf5 {[%clk 0:02:41.3]} 30. Rf1 {[%clk 0:03:57.3]}
30... Bd7 {[%clk 0:02:34.4]} 31. Bc5 {[%clk 0:03:56.2]} 31... Rf6 {[%clk
0:02:31.9]} 32. Rxf6 {[%clk 0:03:54]} 32... gxf6 {[%clk 0:02:31.8]} 33. Bxa7
{[%clk 0:03:53.9]} 33... Kf7 {[%clk 0:02:29]} 34. Bc5 {[%clk 0:03:52.4]} 34...
Kg6 {[%clk 0:02:23.9]} 35. Kg3 {[%clk 0:03:50.9]} 35... f5 {[%clk 0:02:21.9]}
36. Kf4 {[%clk 0:03:49.3]} 36... h5 {[%clk 0:02:20.8]} 37. Bf2 {[%clk
0:03:48.7]} 37... Kf6 {[%clk 0:02:14.6]} 38. c3 {[%clk 0:03:47.5]} 38... Bc8
{[%clk 0:02:10.6]} 39. b4 {[%clk 0:03:46.5]} 39... Ba6 {[%clk 0:02:09.1]} 40. a4
{[%clk 0:03:45.2]} 40... Bc4 {[%clk 0:02:07.5]} 41. a5 {[%clk 0:03:44.6]} 41...
Ke6 {[%clk 0:02:03.7]} 42. Bh4 {[%clk 0:03:40.1]} 42... Be2 {[%clk 0:01:58.8]}
43. Bf2 {[%clk 0:03:39.1]} 43... Bd3 {[%clk 0:01:53.8]} 44. Bh4 {[%clk
0:03:38.5]} 44... Kd6 {[%clk 0:01:49.8]} 45. Bf2 {[%clk 0:03:37.1]} 45... h4
{[%clk 0:01:41.3]} 46. Bxh4 {[%clk 0:03:35.6]} 46... c5 {[%clk 0:01:40.9]} 47.
Bf2 {[%clk 0:03:30.4]} 47... cxb4 {[%clk 0:01:36.7]} 48. cxb4 {[%clk 0:03:30.3]}
48... Kc6 {[%clk 0:01:34.2]} 49. Bc5 {[%clk 0:03:27.8]} 49... Kb5 {[%clk
0:01:28.8]} 50. Ke3 {[%clk 0:03:26.4]} 50... Bc4 {[%clk 0:01:25.6]} 51. Bd6
{[%clk 0:03:22.3]} 51... Kc6 {[%clk 0:01:23.6]} 52. Bc5 {[%clk 0:03:21.2]} 52...
Kb5 {[%clk 0:01:20.3]} 1/2-1/2

[Event "Live Chess"]
[Site "Chess.com"]
[Date "2023.05.20"]
[Round "-"]
[White "JoshMcK"]
[Black "Duke_of_Bebington"]
[Result "0-1"]
[WhiteElo "1558"]
[BlackElo "1609"]
[TimeControl "300"]
[EndTime "12:47:56 PDT"]
[Termination "Duke_of_Bebington won by resignation"]

1. e4 {[%clk 0:04:58.9]} 1... e5 {[%clk 0:04:58.8]} 2. Nf3 {[%clk 0:04:57.7]}
2... Nf6 {[%clk 0:04:57.8]} 3. Nxe5 {[%clk 0:04:56.3]} 3... d6 {[%clk
0:04:56.6]} 4. Nf3 {[%clk 0:04:55.1]} 4... Nxe4 {[%clk 0:04:55.4]} 5. d4 {[%clk
0:04:53.7]} 5... d5 {[%clk 0:04:54.3]} 6. Bd3 {[%clk 0:04:52.7]} 6... Bd6 {[%clk
0:04:46.1]} 7. O-O {[%clk 0:04:52.1]} 7... O-O {[%clk 0:04:44.5]} 8. c4 {[%clk
0:04:47]} 8... c6 {[%clk 0:04:41.4]} 9. cxd5 {[%clk 0:04:44.6]} 9... cxd5 {[%clk
0:04:40]} 10. Nc3 {[%clk 0:04:44.2]} 10... Nxc3 {[%clk 0:04:35]} 11. bxc3 {[%clk
0:04:44.1]} 11... Bg4 {[%clk 0:04:32.1]} 12. h3 {[%clk 0:04:41]} 12... Bh5
{[%clk 0:04:30.5]} 13. Be2 {[%clk 0:04:36.8]} 13... Re8 {[%clk 0:04:24.2]} 14.
Ne5 {[%clk 0:04:31.3]} 14... Bxe2 {[%clk 0:04:19.2]} 15. Qxe2 {[%clk 0:04:28.8]}
15... f6 {[%clk 0:04:18]} 16. Bf4 {[%clk 0:04:22.7]} 16... fxe5 {[%clk
0:04:16.3]} 17. Bxe5 {[%clk 0:04:22.1]} 17... Bxe5 {[%clk 0:04:15.1]} 18. dxe5
{[%clk 0:04:22]} 18... Nc6 {[%clk 0:03:56.3]} 19. f4 {[%clk 0:04:18.6]} 19...
Qb6+ {[%clk 0:03:51.4]} 20. Qf2 {[%clk 0:04:15.9]} 20... Qxf2+ {[%clk
0:03:48.7]} 21. Rxf2 {[%clk 0:04:15.8]} 21... Kf7 {[%clk 0:03:44]} 22. g4 {[%clk
0:04:14.3]} 22... g6 {[%clk 0:03:42.8]} 23. Re1 {[%clk 0:04:12.6]} 23... d4
{[%clk 0:03:35.9]} 24. cxd4 {[%clk 0:04:11.1]} 24... Nxd4 {[%clk 0:03:34.9]} 25.
f5 {[%clk 0:04:10]} 25... gxf5 {[%clk 0:03:33.3]} 26. gxf5 {[%clk 0:04:07.6]}
26... Rg8+ {[%clk 0:03:25.2]} 27. Kh1 {[%clk 0:04:04.3]} 27... Rg5 {[%clk
0:03:24]} 28. e6+ {[%clk 0:04:01.8]} 28... Kf6 {[%clk 0:03:19.8]} 29. e7 {[%clk
0:04:00]} 29... Re8 {[%clk 0:03:17.4]} 30. Re4 {[%clk 0:03:57.2]} 30... Rxf5
{[%clk 0:03:09]} 31. Rxf5+ {[%clk 0:03:48.6]} 31... Nxf5 {[%clk 0:03:07.1]} 32.
Rb4 {[%clk 0:03:47.4]} 32... Rxe7 {[%clk 0:03:05.1]} 33. Kg2 {[%clk 0:03:45.2]}
33... b6 {[%clk 0:03:02.5]} 34. Kf3 {[%clk 0:03:43.9]} 34... h5 {[%clk
0:02:57.3]} 35. a4 {[%clk 0:03:40.5]} 35... Re3+ {[%clk 0:02:53.2]} 36. Kg2
{[%clk 0:03:39.1]} 36... Ra3 {[%clk 0:02:50]} 37. Kh2 {[%clk 0:03:34.8]} 37...
Ke6 {[%clk 0:02:42.3]} 38. Kg2 {[%clk 0:03:33]} 38... Rg3+ {[%clk 0:02:35]} 39.
Kh2 {[%clk 0:03:31.7]} 39... Ra3 {[%clk 0:02:33.8]} 40. Kg2 {[%clk 0:03:30]}
40... Ke5 {[%clk 0:02:30.2]} 41. Kh2 {[%clk 0:03:27.9]} 41... Nd4 {[%clk
0:02:28.6]} 42. Kg2 {[%clk 0:03:25.8]} 42... Kd5 {[%clk 0:02:19]} 0-1

[Event "Live Chess"]
[Site "Chess.com"]
[Date "2023.05.20"]
[Round "-"]
[White "hturner40"]
[Black "Ninifu"]
[Result "0-1"]
[WhiteElo "1773"]
[BlackElo "2018"]
[TimeControl "300"]
[EndTime "12:47:58 PDT"]
[Termination "Ninifu won on time"]

1. g3 {[%clk 0:04:55.8]} 1... Nf6 {[%clk 0:04:58.1]} 2. Bg2 {[%clk 0:04:53.1]}
2... g6 {[%clk 0:04:57.6]} 3. e4 {[%clk 0:04:49.9]} 3... d6 {[%clk 0:04:55.8]}
4. Ne2 {[%clk 0:04:48.8]} 4... Bg7 {[%clk 0:04:54.8]} 5. d4 {[%clk 0:04:47.5]}
5... O-O {[%clk 0:04:54.1]} 6. h3 {[%clk 0:04:46.6]} 6... c6 {[%clk 0:04:50.8]}
7. Be3 {[%clk 0:04:45.2]} 7... Nbd7 {[%clk 0:04:50]} 8. Nbc3 {[%clk 0:04:43.9]}
8... e5 {[%clk 0:04:48.1]} 9. Qd2 {[%clk 0:04:38.8]} 9... Re8 {[%clk 0:04:46.3]}
10. a4 {[%clk 0:04:34.4]} 10... a5 {[%clk 0:04:44.5]} 11. O-O {[%clk 0:04:30.9]}
11... Nb6 {[%clk 0:04:41.5]} 12. b3 {[%clk 0:04:28.6]} 12... Nbd7 {[%clk
0:04:20.2]} 13. Rad1 {[%clk 0:04:22.9]} 13... Qc7 {[%clk 0:04:15.9]} 14. f4
{[%clk 0:04:13.3]} 14... exd4 {[%clk 0:03:57.4]} 15. Bxd4 {[%clk 0:04:08.2]}
15... Nc5 {[%clk 0:03:52.1]} 16. Bxc5 {[%clk 0:04:00.7]} 16... dxc5 {[%clk
0:03:50]} 17. e5 {[%clk 0:03:59.5]} 17... Nd7 {[%clk 0:03:39.8]} 18. Ne4 {[%clk
0:03:53.3]} 18... Nf8 {[%clk 0:03:35.2]} 19. Nxc5 {[%clk 0:03:11.8]} 19... Ne6
{[%clk 0:03:32.3]} 20. Nxe6 {[%clk 0:03:07.5]} 20... Bxe6 {[%clk 0:03:31.6]} 21.
Qe3 {[%clk 0:02:52.6]} 21... Rad8 {[%clk 0:03:10.1]} 22. Nc3 {[%clk 0:02:40.3]}
22... Bh6 {[%clk 0:02:22.9]} 23. Ne4 {[%clk 0:02:30.3]} 23... Qxe5 {[%clk
0:02:19.6]} 24. Rxd8 {[%clk 0:02:11.4]} 24... Rxd8 {[%clk 0:02:07.7]} 25. Qb6
{[%clk 0:01:33.4]} 25... Qd4+ {[%clk 0:02:06.1]} 26. Qxd4 {[%clk 0:01:30.7]}
26... Rxd4 {[%clk 0:02:04.7]} 27. Nc5 {[%clk 0:01:29.5]} 27... Bc8 {[%clk
0:01:52.4]} 28. Re1 {[%clk 0:01:25.1]} 28... Kf8 {[%clk 0:01:42.5]} 29. Re2
{[%clk 0:01:07.1]} 29... b6 {[%clk 0:01:28.2]} 30. Nd3 {[%clk 0:00:57]} 30... c5
{[%clk 0:01:20.7]} 31. Bc6 {[%clk 0:00:49.9]} 31... Be6 {[%clk 0:01:09.6]} 32.
Kf2 {[%clk 0:00:35.7]} 32... Ke7 {[%clk 0:01:05.8]} 33. Ke3 {[%clk 0:00:33.6]}
33... Kd6 {[%clk 0:01:00.9]} 34. Bf3 {[%clk 0:00:23.5]} 34... Bd5 {[%clk
0:00:45.5]} 0-1

[Event "Live Chess"]
[Site "Chess.com"]
[Date "2023.05.20"]
[Round "-"]
[White "Brooms1989"]
[Black "Man-Del-Brot"]
[Result "1-0"]
[WhiteElo "1020"]
[BlackElo "1078"]
[TimeControl "300"]
[EndTime "12:47:58 PDT"]
[Termination "Brooms1989 won by checkmate"]

1. e4 {[%clk 0:04:58]} 1... e5 {[%clk 0:04:58]} 2. Nc3 {[%clk 0:04:57]} 2... Nf6
{[%clk 0:04:52.5]} 3. f4 {[%clk 0:04:55.5]} 3... Nc6 {[%clk 0:04:45.2]} 4. fxe5
{[%clk 0:04:53.1]} 4... Nxe5 {[%clk 0:04:43]} 5. d4 {[%clk 0:04:49.7]} 5... Nc6
{[%clk 0:04:35.6]} 6. e5 {[%clk 0:04:47.1]} 6... Ng8 {[%clk 0:04:33]} 7. Nf3
{[%clk 0:04:45.9]} 7... d6 {[%clk 0:04:30.9]} 8. exd6 {[%clk 0:04:37.6]} 8...
Bxd6 {[%clk 0:04:28.5]} 9. Bd3 {[%clk 0:04:35.9]} 9... Qe7+ {[%clk 0:04:21.6]}
10. Ne2 {[%clk 0:04:26.9]} 10... Bg4 {[%clk 0:04:16.6]} 11. O-O {[%clk
0:04:25.6]} 11... O-O-O {[%clk 0:04:13.5]} 12. c3 {[%clk 0:04:17.4]} 12... h5
{[%clk 0:04:06.9]} 13. h3 {[%clk 0:03:56.6]} 13... Bxf3 {[%clk 0:03:50.7]} 14.
Rxf3 {[%clk 0:03:56.5]} 14... g5 {[%clk 0:03:45.3]} 15. Qf1 {[%clk 0:03:42.8]}
15... Rf8 {[%clk 0:03:39.8]} 16. a4 {[%clk 0:03:13.5]} 16... g4 {[%clk
0:03:37.7]} 17. Rf5 {[%clk 0:03:06.9]} 17... gxh3 {[%clk 0:03:33.3]} 18. gxh3
{[%clk 0:02:59.1]} 18... Rh7 {[%clk 0:03:20.3]} 19. Bg5 {[%clk 0:02:21]} 19...
Rg7 {[%clk 0:03:14.8]} 20. Bc4 {[%clk 0:01:50.3]} 20... Rxg5+ {[%clk 0:03:11.9]}
21. Rxg5 {[%clk 0:01:47.8]} 21... Qxg5+ {[%clk 0:03:10.3]} 22. Kh1 {[%clk
0:01:46.6]} 22... Nh6 {[%clk 0:02:33.9]} 23. Re1 {[%clk 0:01:19.7]} 23... Bg3
{[%clk 0:01:51]} 24. Nxg3 {[%clk 0:01:12.5]} 24... Qxg3 {[%clk 0:01:49.4]} 25.
Be6+ {[%clk 0:00:55.1]} 25... Kb8 {[%clk 0:01:42.2]} 26. Bxf7 {[%clk 0:00:45.7]}
26... Rxf7 {[%clk 0:01:32.6]} 27. Re8+ {[%clk 0:00:41.8]} 27... Nd8 {[%clk
0:01:25.7]} 28. Rxd8# {[%clk 0:00:41.1]} 1-0

[Event "Live Chess"]
[Site "Chess.com"]
[Date "2023.05.20"]
[Round "-"]
[White "Fazer180"]
[Black "fretle"]
[Result "1-0"]
[WhiteElo "1737"]
[BlackElo "1851"]
[TimeControl "300"]
[EndTime "12:48:03 PDT"]
[Termination "Fazer180 won on time"]

1. e4 {[%clk 0:04:58.2]} 1... e6 {[%clk 0:04:54.2]} 2. d4 {[%clk 0:04:56.7]}
2... b6 {[%clk 0:04:53.7]} 3. Nc3 {[%clk 0:04:56.6]} 3... Bb7 {[%clk 0:04:53.1]}
4. Nf3 {[%clk 0:04:55.4]} 4... Bb4 {[%clk 0:04:52.3]} 5. Bd3 {[%clk 0:04:49.3]}
5... d5 {[%clk 0:04:51.2]} 6. e5 {[%clk 0:04:44.1]} 6... c5 {[%clk 0:04:48.2]}
7. a3 {[%clk 0:04:41.5]} 7... Bxc3+ {[%clk 0:04:44.3]} 8. bxc3 {[%clk
0:04:41.4]} 8... c4 {[%clk 0:04:43.8]} 9. Be2 {[%clk 0:04:39.6]} 9... Ne7 {[%clk
0:04:42.5]} 10. O-O {[%clk 0:04:33.8]} 10... Nbc6 {[%clk 0:04:35.1]} 11. a4
{[%clk 0:04:23.1]} 11... Qd7 {[%clk 0:04:22.2]} 12. Ba3 {[%clk 0:04:21.4]} 12...
O-O {[%clk 0:04:02.8]} 13. Bd6 {[%clk 0:04:19.4]} 13... f6 {[%clk 0:04:01.5]}
14. h3 {[%clk 0:04:06.7]} 14... Rf7 {[%clk 0:04:00]} 15. Nh2 {[%clk 0:03:48.2]}
15... fxe5 {[%clk 0:03:56.3]} 16. dxe5 {[%clk 0:03:46.4]} 16... Ng6 {[%clk
0:03:46]} 17. Nf3 {[%clk 0:03:29.3]} 17... Nge7 {[%clk 0:03:44.6]} 18. Ng5
{[%clk 0:03:12]} 18... Rf5 {[%clk 0:03:16.3]} 19. Qd2 {[%clk 0:03:09.8]} 19...
Ng6 {[%clk 0:03:10]} 20. Bg4 {[%clk 0:03:03.1]} 20... Ngxe5 {[%clk 0:02:15.9]}
21. Bxf5 {[%clk 0:02:57.6]} 21... exf5 {[%clk 0:02:15.8]} 22. Bxe5 {[%clk
0:02:27.1]} 22... Nxe5 {[%clk 0:02:15.7]} 23. f4 {[%clk 0:02:21.4]} 23... Ng6
{[%clk 0:02:07.9]} 24. Rfe1 {[%clk 0:02:10.5]} 24... h6 {[%clk 0:01:57.3]} 25.
Nf3 {[%clk 0:02:09.5]} 25... Qd6 {[%clk 0:01:50.2]} 26. Ne5 {[%clk 0:01:57.9]}
26... Nxe5 {[%clk 0:01:48.7]} 27. Rxe5 {[%clk 0:01:53.8]} 27... Rd8 {[%clk
0:01:37.5]} 28. Rxf5 {[%clk 0:01:39.4]} 28... Qg6 {[%clk 0:01:36.1]} 29. Re5
{[%clk 0:01:27]} 29... d4 {[%clk 0:01:22.5]} 30. cxd4 {[%clk 0:01:19.3]} 30...
Be4 {[%clk 0:01:17.7]} 31. c3 {[%clk 0:01:13.3]} 31... Bd3 {[%clk 0:01:16.4]}
32. Rae1 {[%clk 0:01:10.4]} 32... Qc6 {[%clk 0:01:12.9]} 33. Qa2 {[%clk
0:01:02.4]} 33... Rf8 {[%clk 0:01:07.2]} 34. Qf2 {[%clk 0:00:51.5]} 34... Qxa4
{[%clk 0:01:04.9]} 35. Re7 {[%clk 0:00:50.6]} 35... a5 {[%clk 0:00:53.9]} 36.
Qg3 {[%clk 0:00:49.5]} 36... g6 {[%clk 0:00:51.8]} 37. Qh4 {[%clk 0:00:42.9]}
37... h5 {[%clk 0:00:50.3]} 38. Qg5 {[%clk 0:00:40.8]} 38... Qc6 {[%clk
0:00:35]} 39. R1e6 {[%clk 0:00:39]} 39... Qa4 {[%clk 0:00:20.4]} 40. Qxg6+
{[%clk 0:00:37.7]} 40... Bxg6 {[%clk 0:00:19.1]} 41. Rxg6+ {[%clk 0:00:34.4]}
41... Kh8 {[%clk 0:00:18.5]} 42. Rh6+ {[%clk 0:00:33.5]} 42... Kg8 {[%clk
0:00:18]} 43. Rhh7 {[%clk 0:00:31.1]} 43... Rxf4 {[%clk 0:00:16]} 44. Rhg7+
{[%clk 0:00:29.6]} 44... Kf8 {[%clk 0:00:15.4]} 45. Rb7 {[%clk 0:00:25.9]} 45...
Qd1+ {[%clk 0:00:14.4]} 46. Kh2 {[%clk 0:00:24.5]} 46... Rf1 {[%clk 0:00:10.7]}
47. Rgd7 {[%clk 0:00:18.4]} 47... Rh1+ {[%clk 0:00:08.2]} 48. Kg3 {[%clk
0:00:18.1]} 48... Qe1+ {[%clk 0:00:07.5]} 49. Kf4 {[%clk 0:00:15.4]} 49... Rf1+
{[%clk 0:00:06]} 50. Kg5 {[%clk 0:00:13.6]} 50... Qd2+ {[%clk 0:00:05.2]} 51.
Kh4 {[%clk 0:00:09.8]} 51... Qf2+ {[%clk 0:00:03.7]} 52. g3 {[%clk 0:00:08.2]}
52... Qf6+ {[%clk 0:00:01.9]} 53. Kxh5 {[%clk 0:00:07.6]} 1-0